bitfinex-derivatives/quotes_SOLF0:USTF0_20230103
["timestamp","ask_amount","ask_price","bid_price","bid_amount"]
[1672776675873,45.2458,12.989,12.975,50.06305874]
[1672776675874,57.72,12.994,12.984,3.82]
[1672776676083,57.71,12.997,12.984,3.82]
[1672776676296,3.83,12.993,12.984,3.82]
[1672776676822,3.83,12.991,12.983,3.82]
[1672776677661,3.83,12.991,12.982,0.06768352]
[1672776677866,3.81,12.989,12.982,0.06768352]
[1672776678081,3.83,12.987,12.982,0.06768352]
[1672776679030,3.81,12.984,12.982,0.06768352]
[1672776679240,3.83,12.983,12.978,0.06787396]
[1672776679454,3.83,12.983,12.976,0.06918177]
[1672776680185,3.83,12.984,12.976,0.06918177]
[1672776680393,0.06290946,12.985,12.977,3.82]
[1672776681334,0.06290946,12.985,12.979,3.81]
[1672776681547,0.06290946,12.985,12.981,3.81]
[1672776681757,0.06290946,12.985,12.983,3.82]
[1672776681965,0.06270588,12.989,12.983,3.82]
[1672776687964,3.89270588,12.989,12.981,3.82]
[1672776689963,0.06270588,12.989,12.983,3.81]
[1672776690695,3.83,12.991,12.989,0.01306015]
[1672776692382,7.63,12.992,12.989,0.01306015]
[1672776694271,5.0,12.991,12.985,0.0675747]
[1672776694795,7.63,12.992,12.985,0.0675747]
[1672776696480,0.06524837,12.995,12.99,7.64]
[1672776698684,0.06524837,12.995,12.992,7.64]
[1672776698889,0.06385746,12.998,12.992,7.64]
[1672776699208,0.0714806,13.0,12.992,7.64]
[1672776699943,7.6714806,13.0,12.99,7.70626527]
[1672776703201,7.6714806,13.0,12.984,30.56]
[1672776703202,7.63,12.994,12.984,7.64]
[1672776703519,5.0,12.993,12.984,7.64]
[1672776703828,5.0,12.993,12.986,7.64]
[1672776704251,0.06856304,12.994,12.986,7.64]
[1672776704462,0.06856304,12.994,12.989,7.64]
[1672776708555,0.06856304,12.994,12.985,5.06630131]
[1672776708773,0.06856304,12.994,12.991,7.64]
[1672776708979,0.06577329,12.997,12.991,7.64]
[1672776709192,0.0606459,12.999,12.991,7.64]
[1672776709717,7.6606459,12.999,12.989,7.70202985]
[1672776709929,7.63,12.998,12.989,0.06202985]
[1672776710139,5.0,12.997,12.989,0.06202985]
[1672776710874,7.63,12.998,12.989,0.06202985]
[1672776712867,50.5725459,12.999,12.989,7.70202985]
[1672776713929,7.6906459,12.999,12.989,7.70202985]
[1672776716760,7.47232536,12.999,12.99,5.0]
[1672776717600,7.53434247,12.999,12.99,5.0]
[1672776718023,7.53434247,12.999,12.989,7.70202985]
[1672776721068,7.63,12.993,12.989,0.06202985]
[1672776721695,7.6,12.995,12.989,0.06202985]
[1672776721910,0.06199213,12.996,12.989,0.06202985]
[1672776722743,0.06199213,12.996,12.99,7.61]
[1672776722957,0.06199213,12.996,12.992,7.64]
[1672776723267,0.06199213,12.996,12.99,7.57]
[1672776723691,0.06199213,12.996,12.989,0.06202985]
[1672776724324,7.62,12.993,12.989,0.06202985]
[1672776725055,7.63,12.992,12.989,0.06202985]
[1672776725273,7.63,12.992,12.986,0.06298097]
[1672776725585,7.63,12.992,12.984,0.06208956]
[1672776727997,0.06034652,12.994,12.985,7.57]
[1672776729260,7.62,12.995,12.994,0.17948792]
[1672776729897,52.1798,12.997,12.994,0.17948792]
[1672776731264,7.63,12.997,12.994,0.17948792]
[1672776731475,0.06334815,13.0,12.994,0.17948792]
[1672776735997,0.06334815,13.0,12.997,7.61]
[1672776736205,0.06189233,13.003,12.997,7.61]
[1672776736519,0.06750934,13.005,12.997,7.61]
[1672776739141,0.06750934,13.005,12.998,7.64]
[1672776739352,0.06750934,13.005,12.995,0.06610873]
[1672776739353,0.06750934,13.005,13.002,7.61]
[1672776739673,0.06359691,13.008,13.002,7.61]
[1672776739877,7.68496277,13.01,13.0,7.70664916]
[1672776740091,7.68755274,13.01,13.0,7.71137971]
[1672776740723,7.6,13.003,13.0,0.07137971]
[1672776740929,7.6,13.003,12.997,0.06882974]
[1672776741143,7.6,13.003,12.995,0.06183891]
[1672776743142,7.39606664,13.003,12.995,0.06183891]
[1672776743456,5.0,13.002,12.995,0.06183891]
[1672776743667,7.63,12.999,12.995,0.06183891]
[1672776743877,7.62,12.998,12.995,0.06183891]
[1672776744087,7.62,12.998,12.994,0.17948792]
[1672776744821,7.63,12.999,12.994,0.17948792]
[1672776745032,0.06287512,13.002,12.994,7.81948792]
[1672776746392,0.06287512,13.002,12.994,0.17948792]
[1672776746612,0.06287512,13.002,12.996,7.64]
[1672776746921,0.06287512,13.002,12.997,5.0]
[1672776747867,0.06287512,13.002,12.998,7.64]
[1672776748184,0.06287512,13.002,12.999,5.0]
[1672776748497,0.06370705,13.005,12.999,5.0]
[1672776748920,0.06370705,13.005,13.004,7.57]
[1672776749129,0.07000041,13.009,13.004,7.57]
[1672776749341,0.0668669,13.011,13.007,7.64]
[1672776749553,5.06293252,13.014,13.007,7.64]
[1672776749865,0.06293252,13.014,13.007,7.64]
[1672776750699,0.06293252,13.014,13.009,7.61]
[1672776752279,0.06293252,13.014,13.011,7.57]
[1672776752598,0.06544058,13.017,13.013,7.64]
[1672776752809,0.06595587,13.02,13.016,7.64]
[1672776753018,0.06628571,13.023,13.017,5.0]
[1672776753232,5.06926377,13.025,13.017,5.0]
[1672776753437,0.06926377,13.025,13.017,5.0]
[1672776753647,0.06926377,13.025,13.016,7.64]
[1672776754696,0.06926377,13.025,13.018,7.64]
[1672776756268,0.06926377,13.025,13.019,7.64]
[1672776756485,7.63,13.033,13.025,0.03385064]
[1672776757221,7.64,13.027,13.016,12.64]
[1672776757433,5.0,13.026,13.017,5.06583129]
[1672776757640,5.06690213,13.026,13.017,5.06583129]
[1672776757956,0.06690213,13.026,13.017,5.06583129]
[1672776758480,0.06690213,13.026,13.019,5.0]
[1672776758691,0.06690213,13.026,13.02,7.64]
[1672776759844,0.06690213,13.026,13.023,7.64]
[1672776760057,50.0,13.028,13.023,7.64]
[1672776762364,50.06511983,13.029,13.023,7.64]
[1672776764257,50.06511983,13.029,13.021,7.64]
[1672776764679,50.06511983,13.029,13.02,7.70760692]
[1672776764883,7.63,13.028,13.02,0.06760692]
[1672776765096,5.0,13.027,13.02,0.06760692]
[1672776765517,12.63,13.028,13.02,0.06760692]
[1672776766880,7.63,13.027,13.02,0.06760692]
[1672776767091,5.0,13.026,13.02,0.06760692]
[1672776767305,7.6,13.025,13.02,0.06760692]
[1672776768567,7.62,13.027,13.02,0.06760692]
[1672776771092,7.42072307,13.027,13.02,0.06760692]
[1672776771612,7.63,13.025,13.02,0.06760692]
[1672776771931,7.6,13.021,13.02,6.92e-06]
[1672776772138,7.6,13.021,13.011,5.0]
[1672776772352,7.62,13.022,13.012,7.61]
[1672776772665,12.6,13.024,13.013,12.57]
[1672776772876,0.06940061,13.022,13.013,12.57]
[1672776773612,7.69940061,13.022,13.012,7.7094448]
[1672776779914,7.6,13.02,13.012,0.0694448]
[1672776784755,44.55310061,13.022,13.012,7.6394448]
[1672776785068,44.55310061,13.022,13.012,7.40890239]
[1672776785277,12.6,13.021,13.01,7.64]
[1672776785486,7.62,13.019,13.009,7.57]
[1672776785696,5.0,13.018,13.009,7.57]
[1672776785906,5.06680962,13.018,13.009,7.63014951]
[1672776786435,0.06680962,13.018,13.009,7.63014951]
[1672776789481,7.6,13.017,13.009,0.06014951]
[1672776792530,45.4634,13.016,13.009,0.06014951]
[1672776792740,15.42680962,13.018,13.009,0.06014951]
[1672776793792,0.06680962,13.018,13.009,15.27014951]
[1672776794626,0.06680962,13.018,13.011,15.36]
[1672776794840,0.06680962,13.018,13.012,5.0]
[1672776795472,0.06680962,13.018,13.011,15.36]
[1672776795998,0.06680962,13.018,13.012,20.36]
[1672776796841,0.06680962,13.018,13.012,15.36]
[1672776797054,0.06680962,13.018,13.011,15.36]
[1672776797365,0.06680962,13.018,13.012,5.0]
[1672776797887,0.06680962,13.018,13.011,15.36]
[1672776799888,5.0,13.023,13.018,0.09377914]
[1672776800094,15.36,13.022,13.018,0.09377914]
[1672776800310,5.0,13.021,13.018,0.09377914]
[1672776801258,5.0,13.021,13.015,0.06274676]
[1672776802309,15.36,13.022,13.015,0.06274676]
[1672776803777,60.49104276,13.024,13.015,0.06274676]
[1672776805883,20.36,13.021,13.015,0.06274676]
[1672776806303,5.0,13.02,13.015,0.06274676]
[1672776807144,77.96,13.021,13.015,0.06274676]
[1672776807355,20.36,13.021,13.015,0.06274676]
[1672776808407,15.36,13.021,13.015,0.06274676]
[1672776809766,15.36,13.023,13.015,0.06274676]
[1672776809979,60.49104276,13.024,13.015,0.06274676]
[1672776810186,5.0,13.023,13.015,0.06274676]
[1672776811241,52.78104276,13.024,13.015,0.06274676]
[1672776814712,52.57856156,13.024,13.015,0.06274676]
[1672776817972,5.0,13.023,13.015,0.06274676]
[1672776818182,7.65,13.021,13.015,0.06274676]
[1672776821857,52.59856156,13.024,13.015,0.06274676]
[1672776823015,0.06144276,13.024,13.017,7.6]
[1672776823757,0.06144276,13.024,13.016,7.6]
[1672776827228,7.73144276,13.024,13.015,0.06274676]
[1672776829434,7.56883447,13.024,13.015,0.06274676]
[1672776830489,7.62973444,13.024,13.015,0.06274676]
[1672776830694,7.67,13.022,13.015,0.06274676]
[1672776831014,7.61,13.02,13.015,0.06274676]
[1672776831640,5.0,13.019,13.015,0.06274676]
[1672776831847,7.67,13.018,13.015,4.676e-05]
[1672776832166,5.0,13.017,13.008,7.6]
[1672776832377,7.67,13.018,13.008,7.6]
[1672776832801,7.73109514,13.018,13.008,7.66337202]
[1672776834897,0.06109514,13.018,13.01,7.64]
[1672776835216,0.06109514,13.018,13.011,5.0]
[1672776836899,0.06109514,13.018,13.01,7.64]
[1672776840158,0.06109514,13.018,13.011,7.63]
[1672776840367,0.06109514,13.018,13.012,5.0]
[1672776841525,0.06109514,13.018,13.011,7.63]
[1672776842678,7.71109514,13.018,13.008,7.66337202]
[1672776844046,7.67,13.016,13.008,0.06337202]
[1672776844258,5.0,13.015,13.008,0.06337202]
[1672776844467,7.67,13.013,13.008,0.06337202]
[1672776846046,7.56820823,13.013,13.008,0.06337202]
[1672776859509,7.40583908,13.013,13.008,0.06337202]
[1672776865496,7.67,13.011,13.008,0.06337202]
[1672776865708,7.67,13.011,13.005,0.06300606]
[1672776867072,7.67,13.013,13.005,0.06300606]
[1672776870541,0.06503206,13.015,13.005,7.69300606]
[1672776871693,0.06503206,13.015,13.006,3.81]
[1672776871908,3.85503206,13.015,13.006,3.81]
[1672776872114,3.78,13.013,13.005,3.87300606]
[1672776872747,3.56480047,13.013,13.005,3.87300606]
[1672776873483,3.56480047,13.013,13.005,3.80373464]
[1672776876316,3.79,13.012,13.004,0.07012712]
[1672776886818,3.67350176,13.012,13.004,0.07012712]
[1672776889349,3.79,13.009,13.004,0.07012712]
[1672776899118,3.81,13.007,13.004,0.07012712]
[1672776899438,3.81,13.005,12.994,3.81]
[1672776899647,5.0,13.006,12.994,3.81]
[1672776899648,3.81,13.002,12.994,3.81]
[1672776903954,0.06675778,13.003,12.997,3.81]
[1672776906684,0.06675778,13.003,12.998,3.81]
[1672776907108,0.06675778,13.003,13.0,3.81]
[1672776907319,0.06020686,13.006,13.0,3.81]
[1672776908153,0.06020686,13.006,13.005,3.81]
[1672776908367,3.81,13.015,13.005,3.81]
[1672776909314,3.8744902,13.015,13.005,3.87643515]
[1672776912359,0.0644902,13.015,13.009,3.81]
[1672776912570,0.0644902,13.015,13.011,3.81]
[1672776913201,0.0644902,13.015,13.008,0.06967202]
[1672776913202,0.0644902,13.015,13.012,3.81]
[1672776913411,0.06215617,13.018,13.012,3.81]
[1672776914568,0.06215617,13.018,13.01,0.06156741]
[1672776914778,0.06215617,13.018,13.014,3.79]
[1672776915303,0.06215617,13.018,13.017,3.77]
[1672776915514,0.06054556,13.022,13.017,3.77]
[1672776915725,0.06274193,13.024,13.021,3.78]
[1672776916038,0.0644377,13.027,13.024,3.79]
[1672776916246,0.06932718,13.03,13.025,3.81]
[1672776916460,0.06313454,13.032,13.025,3.81]
[1672776917829,3.87313454,13.032,13.024,3.79]
[1672776918032,3.79,13.027,13.023,0.06910837]
[1672776918244,3.78,13.026,13.023,0.06910837]
[1672776918457,3.78,13.026,13.02,0.06607134]
[1672776919509,3.81,13.028,13.02,0.06607134]
[1672776919719,3.88090158,13.029,13.021,3.81]
[1672776919929,0.07090158,13.029,13.024,3.79]
[1672776920349,0.07090158,13.029,13.022,3.81]
[1672776920663,3.78,13.027,13.02,0.06607134]
[1672776921082,3.81,13.025,13.02,0.06607134]
[1672776921609,7.67,13.026,13.02,0.06607134]
[1672776924017,7.59,13.028,13.02,0.06607134]
[1672776927285,7.67,13.026,13.02,0.06607134]
[1672776929075,7.66,13.022,13.02,0.06607134]
[1672776929384,7.66,13.022,13.016,0.06291768]
[1672776929595,7.66,13.022,13.014,0.06317441]
[1672776930963,50.77324719,13.024,13.014,7.73317441]
[1672776932015,43.18324719,13.024,13.016,7.67]
[1672776932958,0.06734719,13.024,13.017,7.67]
[1672776933695,7.67,13.028,13.024,0.04705524]
[1672776934631,50.0,13.03,13.01,5.0]
[1672776934632,7.59,13.026,13.021,0.06224708]
[1672776934954,7.66,13.025,13.019,0.06430317]
[1672776935159,7.66,13.025,13.017,0.07141848]
[1672776937266,5.0,13.018,13.009,7.67]
[1672776938001,7.66,13.019,13.009,7.67]
[1672776938423,7.72636907,13.019,13.009,7.73423304]
[1672776944939,0.06636907,13.019,13.011,7.67]
[1672776946516,0.06636907,13.019,13.011,7.51700591]
[1672776947775,0.06636907,13.019,13.013,7.67]
[1672776947989,0.06636907,13.019,13.015,7.67]
[1672776948305,0.06636907,13.019,13.016,7.67]
[1672776948616,0.06285701,13.022,13.016,7.67]
[1672776948828,0.06037305,13.024,13.015,7.63]
[1672776949039,5.06103224,13.024,13.015,7.69106471]
[1672776949669,0.06103224,13.024,13.015,7.69106471]
[1672776950087,7.73103224,13.024,13.015,0.06106471]
[1672776950299,7.66,13.022,13.015,0.06106471]
[1672776953978,0.06103224,13.024,13.015,0.06106471]
[1672776955449,5.06103224,13.024,13.015,0.06106471]
[1672776956604,0.06103224,13.024,13.015,0.06106471]
[1672776956918,7.67,13.023,13.015,0.06106471]
[1672776957128,5.0,13.022,13.015,0.06106471]
[1672776957653,7.67,13.023,13.015,0.06106471]
[1672776959965,7.51259417,13.023,13.015,0.06106471]
[1672776961856,0.06103224,13.024,13.019,7.67]
[1672776962278,0.06103224,13.024,13.022,7.67]
[1672776962591,0.06103224,13.024,13.02,5.0]
[1672776962592,0.06988996,13.028,13.024,5.0]
[1672776962803,0.06381558,13.031,13.024,5.0]
[1672776963220,0.06381558,13.031,13.025,7.67]
[1672776963431,0.06381558,13.031,13.026,5.0]
[1672776964063,0.06381558,13.031,13.025,7.67]
[1672776965847,0.06381558,13.031,13.024,7.73490016]
[1672776966052,7.66,13.027,13.024,0.06490016]
[1672776966269,7.62,13.025,13.021,0.06861949]
[1672776966480,7.62,13.025,13.018,0.06357704]
[1672776968895,7.62,13.024,13.018,0.06357704]
[1672776969107,7.59,13.02,13.018,0.06357704]
[1672776969317,12.67,13.019,13.008,7.63]
[1672776969527,5.0,13.018,13.008,7.63]
[1672776970158,7.59,13.015,13.005,7.67]
[1672776970365,7.59,13.015,13.008,0.06399312]
[1672776970575,0.07108855,13.015,13.008,0.06399312]
[1672776971843,7.62,13.028,13.014,7.67]
[1672776972149,5.0,13.027,13.018,7.67]
[1672776972574,7.62,13.028,13.018,7.67]
[1672776972889,7.688507,13.028,13.018,7.73098952]
[1672776973310,7.59,13.027,13.018,0.06098952]
[1672776973513,5.0,13.026,13.018,0.06098952]
[1672776973933,7.59,13.027,13.018,0.06098952]
[1672776974464,0.068507,13.028,13.018,7.73098952]
[1672776975509,0.068507,13.028,13.02,7.67]
[1672776977512,0.068507,13.028,13.021,7.67]
[1672776977932,0.068507,13.028,13.023,7.67]
[1672776978141,0.068507,13.028,13.021,0.06039197]
[1672776978353,0.068507,13.028,13.02,7.69535705]
[1672776980140,0.068507,13.028,13.02,0.06535705]
[1672776981613,0.068507,13.028,13.021,7.63]
[1672776981820,0.068507,13.028,13.023,7.67]
[1672776982667,0.068507,13.028,13.02,0.06535705]
[1672776983610,7.688507,13.028,13.02,0.06535705]
[1672776985708,7.61838317,13.028,13.02,0.06535705]
[1672776987183,7.59,13.026,13.02,0.06535705]
[1672776988339,45.0725,13.027,13.02,5.705e-05]
[1672776988550,7.59,13.021,13.02,5.705e-05]
[1672776988759,7.59,13.021,13.011,7.67]
[1672776989388,7.65350409,13.021,13.011,7.73905105]
[1672776989599,0.06350409,13.021,13.014,7.67]
[1672776989808,0.06350409,13.021,13.015,5.0]
[1672776990860,0.06350409,13.021,13.013,15.31]
[1672776991066,0.06350409,13.021,13.014,5.0]
[1672776991591,0.06350409,13.021,13.012,5.0]
[1672776992645,0.06350409,13.021,13.011,15.35905105]
[1672776992960,15.39350409,13.021,13.011,0.06905105]
[1672776994323,0.06350409,13.021,13.012,15.2]
[1672776994643,0.06350409,13.021,13.013,5.0]
[1672776995271,0.06350409,13.021,13.011,5.06905105]
[1672776996008,0.06350409,13.021,13.011,0.06905105]
[1672776996535,15.3,13.02,13.011,0.06905105]
[1672776996743,5.0,13.019,13.011,0.06905105]
[1672776997372,15.3,13.02,13.011,0.06905105]
[1672776999058,44.76320409,13.021,13.012,15.31]
[1672776999268,44.76320409,13.021,13.013,5.0]
[1672776999691,0.06350409,13.021,13.013,5.0]
[1672777000002,0.06350409,13.021,13.015,15.29]
[1672777000213,0.06350409,13.021,13.016,15.2]
[1672777000631,15.33,13.029,13.021,0.0664184]
[1672777001053,15.35,13.031,13.021,0.0664184]
[1672777001259,5.0,13.03,13.021,0.0664184]
[1672777001679,5.07072787,13.03,13.021,0.13305438]
[1672777002739,0.07072787,13.03,13.021,0.13305438]
[1672777005258,15.3,13.029,13.021,0.13305438]
[1672777005468,5.0,13.028,13.021,0.13305438]
[1672777005678,20.35,13.028,13.021,0.13305438]
[1672777008304,15.35,13.028,13.021,0.13305438]
[1672777009569,15.34,13.029,13.021,0.13305438]
[1672777012196,0.07072787,13.03,13.021,15.42305438]
[1672777012716,65.35,13.032,13.03,0.00114289]
[1672777014088,15.21,13.031,13.03,0.00114289]
[1672777014296,20.21,13.031,13.026,0.06225298]
[1672777014611,15.21,13.031,13.026,0.06225298]
[1672777015244,65.3,13.032,13.026,0.06225298]
[1672777015658,15.35,13.03,13.026,0.06225298]
[1672777015973,5.0,13.029,13.026,5.298e-05]
[1672777016183,5.0,13.029,13.021,0.0664184]
[1672777016715,15.41634673,13.03,13.021,0.0664184]
[1672777025961,15.35,13.028,13.021,0.0664184]
[1672777026172,5.0,13.027,13.021,0.0664184]
[1672777026803,15.35,13.028,13.021,0.0664184]
[1672777027425,72.96634673,13.03,13.021,0.0664184]
[1672777027645,15.40634673,13.03,13.021,0.0664184]
[1672777028379,15.25591679,13.03,13.021,0.0664184]
[1672777028589,0.07154569,13.021,13.02,5.06344569]
[1672777028790,1e-08,13.021,13.019,15.31]
[1672777029741,1e-08,13.021,13.019,7.66]
[1672777031636,1e-08,13.021,13.02,7.66]
[1672777031847,8.12e-05,13.025,13.021,5.0]
[1672777032057,8.12e-05,13.025,13.024,7.67]
[1672777032266,50.0,13.033,13.024,7.67]
[1672777032794,50.06487087,13.033,13.024,7.67]
[1672777033108,50.06487087,13.033,13.024,7.74005266]
[1672777034267,50.06487087,13.033,13.024,0.07005266]
[1672777034472,12.67,13.032,13.024,0.07005266]
[1672777034796,5.0,13.031,13.024,0.07005266]
[1672777035107,7.63,13.028,13.024,0.07005266]
[1672777036793,49.5345,13.03,13.024,0.07005266]
[1672777037525,12.67,13.032,13.024,0.07005266]
[1672777037841,7.67,13.032,13.024,0.07005266]
[1672777038472,57.73487087,13.033,13.024,0.07005266]
[1672777039836,7.67,13.031,13.024,0.07005266]
[1672777040154,5.0,13.03,13.024,0.07005266]
[1672777042464,12.67,13.031,13.024,0.07005266]
[1672777043095,7.67,13.031,13.024,0.07005266]
[1672777044040,7.66,13.025,13.024,5.266e-05]
[1672777044252,7.66,13.025,13.013,7.67]
[1672777044567,12.63,13.024,13.013,7.67]
[1672777044778,5.0,13.023,13.013,7.67]
[1672777045088,0.07058552,13.023,13.013,7.7355098]
[1672777045409,0.07058552,13.023,13.015,5.0]
[1672777046147,0.07058552,13.023,13.014,7.67]
[1672777047406,7.74058552,13.023,13.013,0.0655098]
[1672777049821,0.07058552,13.023,13.014,7.67]
[1672777050872,0.07058552,13.023,13.014,15.25]
[1672777051186,0.07058552,13.023,13.015,5.0]
[1672777052026,0.07058552,13.023,13.014,15.25]
[1672777056538,0.07058552,13.023,13.016,15.32]
[1672777056756,0.07058552,13.023,13.017,5.0]
[1672777057070,15.27,13.029,13.023,0.14157217]
[1672777057490,57.4936,13.031,13.023,0.14157217]
[1672777058333,5.0,13.03,13.023,0.14157217]
[1672777060852,57.4936,13.031,13.023,0.14157217]
[1672777067896,15.33,13.031,13.023,0.14157217]
[1672777068104,0.06286406,13.032,13.023,0.14157217]
[1672777069992,15.40286406,13.032,13.023,0.14157217]
[1672777071255,15.20550822,13.032,13.023,0.14157217]
[1672777072310,15.26607452,13.032,13.023,0.14157217]
[1672777073047,15.33,13.028,13.023,0.14157217]
[1672777075884,0.07706721,13.023,13.022,0.06423367]
[1672777076089,0.07706721,13.023,13.018,0.07033804]
[1672777076303,0.07706721,13.023,13.017,5.0]
[1672777077037,0.07706721,13.023,13.016,15.29816626]
[1672777079141,0.07706721,13.023,13.018,15.32]
[1672777082504,0.07706721,13.023,13.02,15.34]
[1672777083761,0.07706721,13.023,13.018,15.32]
[1672777083977,6.721e-05,13.023,13.02,15.34]
[1672777084186,0.06573993,13.025,13.02,15.34]
[1672777088806,0.06573993,13.025,13.016,0.06816626]
[1672777089020,50.0,13.024,13.016,0.06816626]
[1672777089545,5.0,13.023,13.016,0.06816626]
[1672777089962,15.40573993,13.025,13.016,0.06816626]
[1672777090280,0.06573993,13.025,13.016,15.32816626]
[1672777090596,0.06573993,13.025,13.017,7.65]
[1672777091744,50.0,13.024,13.014,7.66]
[1672777091957,7.62,13.021,13.011,7.65]
[1672777092276,7.67,13.02,13.01,5.0]
[1672777092485,12.67,13.02,13.009,7.65]
[1672777092795,5.06433411,13.019,13.01,0.07042051]
[1672777093005,7.67,13.018,13.01,0.07042051]
[1672777093424,5.0,13.017,13.01,0.07042051]
[1672777094063,7.67,13.016,13.01,0.07042051]
[1672777094374,5.0,13.014,13.01,0.07042051]
[1672777095000,49.3763,13.016,13.01,0.07042051]
[1672777099736,7.67,13.011,12.998,7.65]
[1672777099947,7.67,13.008,12.998,7.65]
[1672777100681,7.73403984,13.008,12.998,7.7103208]
[1672777104148,7.67,13.006,12.998,0.0603208]
[1672777106354,7.67,13.004,12.998,0.0603208]
[1672777108983,12.67,13.003,12.998,0.0603208]
[1672777110351,5.0,12.998,12.987,7.65]
[1672777110561,12.62,12.998,12.987,7.65]
[1672777111194,0.06410009,12.997,12.988,0.06081076]
[1672777114873,7.67,12.995,12.988,0.06081076]
[1672777122435,7.51681293,12.995,12.988,0.06081076]
[1672777124747,7.67,12.996,12.988,0.06081076]
[1672777126846,7.62,12.995,12.988,0.06081076]
[1672777136309,7.55097313,12.995,12.988,0.06081076]
[1672777138097,65.26097313,12.995,12.988,0.06081076]
[1672777139463,7.55097313,12.995,12.988,0.06081076]
[1672777141248,57.72,12.994,12.988,0.06081076]
[1672777142609,65.26097313,12.995,12.988,0.06081076]
[1672777143031,7.55097313,12.995,12.988,0.06081076]
[1672777146080,51.025,12.996,12.988,0.06081076]
[1672777148288,7.62,12.994,12.988,0.06081076]
[1672777149866,5.0,12.993,12.988,0.06081076]
[1672777150599,4.82598089,12.993,12.988,0.06081076]
[1672777151438,7.62,12.99,12.988,0.06081076]
[1672777151752,7.67,12.989,12.978,7.67]
[1672777152065,5.0,12.988,12.978,7.67]
[1672777153221,7.67,12.989,12.978,7.67]
[1672777156169,3.82,12.987,12.979,3.81]
[1672777158591,5.0,12.986,12.979,3.81]
[1672777160798,8.82,12.987,12.979,3.81]
[1672777161533,3.82,12.985,12.977,3.82]
[1672777162373,5.0,12.984,12.977,3.82]
[1672777162580,3.82,12.982,12.976,0.06509758]
[1672777162791,3.82,12.977,12.976,0.06509758]
[1672777162998,3.82,12.977,12.972,0.06762542]
[1672777163211,3.82,12.977,12.97,0.0665588]
[1672777166472,3.82,12.977,12.97,0.0025683]
[1672777167101,3.88795239,12.979,12.97,0.0025683]
[1672777167309,0.06795239,12.979,12.971,3.82]
[1672777177711,0.06795239,12.979,12.97,7.6125683]
[1672777180342,0.06795239,12.979,12.971,7.64]
[1672777181182,7.66,12.983,12.979,0.16547714]
[1672777182759,46.09777829,12.986,12.979,0.16547714]
[1672777184546,0.06207829,12.986,12.979,0.16547714]
[1672777189172,7.66,12.992,12.981,7.64]
[1672777189375,5.0,12.991,12.982,5.0]
[1672777190116,5.0,12.991,12.981,7.64]
[1672777190326,5.06487116,12.991,12.981,7.71096102]
[1672777191266,0.06487116,12.991,12.981,7.71096102]
[1672777192009,0.06487116,12.991,12.984,7.66]
[1672777192423,7.59,12.99,12.981,0.07096102]
[1672777192637,5.0,12.989,12.981,0.07096102]
[1672777194530,7.59,12.99,12.981,0.07096102]
[1672777196417,7.66,12.988,12.981,0.07096102]
[1672777198421,7.66,12.986,12.981,0.07096102]
[1672777202727,7.42076506,12.986,12.981,0.07096102]
[1672777205773,45.4455441,12.988,12.981,0.07096102]
[1672777206398,0.0657441,12.988,12.981,0.07096102]
[1672777206614,0.0657441,12.988,12.981,7.73096102]
[1672777209347,0.0657441,12.988,12.981,0.07096102]
[1672777216907,7.66,12.99,12.988,0.03647654]
[1672777226158,7.6,12.993,12.988,0.03647654]
[1672777229315,0.06103316,12.994,12.988,0.03647654]
[1672777229731,7.66,12.996,12.994,0.09755565]
[1672777234255,7.66,12.999,12.994,0.09755565]
[1672777235934,7.66,12.997,12.994,0.09755565]
[1672777236672,5.0,12.996,12.99,0.06962678]
[1672777237198,3.82,12.997,12.99,0.06962678]